bitfinex/quotes_SOLUSD_20220104
["timestamp","ask_amount","ask_price","bid_price","bid_amount"]
[1641303858246,2.93195731,171.41,171.27,103.7446]
[1641303860447,2.93195731,171.41,171.27,103.4846]
[1641303861850,2.93195731,171.41,171.39,2.6315577]
[1641303862251,6.06155675,171.4,171.39,2.6315577]
[1641303862454,6.56155675,171.4,171.39,2.6315577]
[1641303862650,6.82155675,171.4,171.27,103.4846]
[1641303863052,6.82155675,171.4,171.27,102.9846]
[1641303863452,8.46525614,171.4,171.27,24.2345]
[1641303863654,8.46525614,171.4,171.26,24.5584814]
[1641303864052,9.81175614,171.4,171.26,24.5584814]
[1641303864654,1.64369939,171.38,171.26,24.5584814]
[1641303864851,2.39600946,171.37,171.26,24.5584814]
[1641303865052,2.65600946,171.37,171.26,24.5584814]
[1641303865252,3.15600946,171.37,171.26,24.5584814]
[1641303867058,3.15600946,171.37,171.26,24.8184814]
[1641303867253,3.15600946,171.37,171.26,25.3184814]
[1641303867454,3.15600946,171.37,171.26,24.8184814]
[1641303868285,2.89600946,171.37,171.26,24.8184814]
[1641303868457,2.89600946,171.37,171.26,25.3184814]
[1641303869455,2.89600946,171.37,171.26,24.5584814]
[1641303869658,3.15600946,171.37,171.26,24.5584814]
[1641303876062,3.15600946,171.37,171.26,26.74517508]
[1641303876267,3.15600946,171.37,171.26,24.8184814]
[1641303876666,2.89600946,171.37,171.26,24.8184814]
[1641303876864,0.5,171.37,171.26,25.3184814]
[1641303877066,104.61299939,171.39,171.26,25.3184814]
[1641303877266,0.5,171.38,171.26,25.3184814]
[1641303877967,106.63988927,171.39,171.26,25.3184814]
[1641303878467,106.63988927,171.39,171.27,1.42669368]
[1641303878667,82.40678927,171.39,171.27,1.42669368]
[1641303878869,79.4962,171.39,171.27,2.18669368]
[1641303879071,0.5,171.39,171.27,25.20369368]
[1641303879275,1.64369939,171.41,171.28,1.42669368]
[1641303879473,0.26,171.4,171.28,3.46579368]
[1641303879875,2.56607923,171.4,171.29,1.42669368]
[1641303880072,2.56607923,171.4,171.29,1.68669368]
[1641303880275,2.56607923,171.4,171.29,2.18669368]
[1641303880573,2.56607923,171.4,171.3,1.42669368]
[1641303880973,2.56607923,171.4,171.3,2.18669368]
[1641303881571,2.30607923,171.4,171.3,2.18669368]
[1641303882874,2.80607923,171.4,171.28,1.2791]
[1641303883074,2.80607923,171.4,171.28,2.0391]
[1641303883296,2.80607923,171.4,171.28,3.46579368]
[1641303883898,2.30607923,171.4,171.28,3.46579368]
[1641303884096,2.30607923,171.4,171.28,2.0391]
[1641303884297,4.38037923,171.4,171.28,1.2791]
[1641303884502,4.38037923,171.4,171.27,23.017]
[1641303884897,6.02407862,171.4,171.27,24.3016]
[1641303885298,6.02407862,171.4,171.27,24.8016]
[1641303885697,6.02407862,171.4,171.27,25.0616]
[1641303886497,6.02407862,171.4,171.27,24.5616]
[1641303886697,6.02407862,171.4,171.27,25.0616]
[1641303889706,1.64369939,171.39,171.27,25.0616]
[1641303889904,2.14369939,171.39,171.27,25.0616]
[1641303890103,2.40369939,171.39,171.27,25.0616]
[1641303890303,0.76,171.39,171.27,25.0616]
[1641303890502,0.5,171.39,171.27,24.5616]
[1641303890705,4.38037923,171.4,171.27,23.017]
[1641303890906,4.38037923,171.4,171.26,24.5584814]
[1641303891705,6.02407862,171.4,171.25,81.2738]
[1641303891906,6.02407862,171.4,171.22,1.42669368]
[1641303892109,23.7161,171.39,171.22,1.42669368]
[1641303892509,24.4761,171.39,171.21,24.2399]
[1641303892708,123.4141,171.39,171.23,28.61341225]
[1641303892909,1.2558,171.38,171.23,28.61341225]
[1641303893109,1.5158,171.38,171.23,28.61341225]
[1641303893309,2.0158,171.38,171.23,28.61341225]
[1641303893509,3.65949939,171.38,171.23,28.61341225]
[1641303894312,3.39949939,171.38,171.23,28.61341225]
[1641303894510,3.39949939,171.38,171.23,30.04010593]
[1641303894711,3.39949939,171.38,171.24,25.0]
[1641303895113,3.39949939,171.38,171.25,1.42669368]
[1641303895311,3.39949939,171.38,171.25,2.68419368]
[1641303895513,1.7558,171.38,171.25,2.94419368]
[1641303895715,1.7558,171.38,171.25,3.44419368]
[1641303895914,1.7558,171.38,171.26,24.2683]
[1641303896313,1.7558,171.38,171.26,25.0283]
[1641303897219,1.7558,171.38,171.26,26.45499368]
[1641303897418,0.76,171.38,171.26,26.45499368]
[1641303897617,123.4141,171.39,171.26,26.45499368]
[1641303898020,123.4141,171.39,171.26,25.0283]
[1641303898418,123.4141,171.39,171.26,24.2683]
[1641303898617,123.4141,171.39,171.26,24.5283]
[1641303899017,124.6747,171.39,171.26,24.5283]
[1641303899218,124.6747,171.39,171.26,24.2683]
[1641303899419,124.6747,171.39,171.26,24.5283]
[1641303901521,124.6747,171.39,171.26,24.2683]
[1641303902747,124.6747,171.39,171.25,1.2575]
[1641303902949,124.6747,171.39,171.25,0.26]
[1641303903349,126.31839939,171.39,171.23,29.11341225]
[1641303903753,126.31839939,171.39,171.23,28.61341225]
[1641303904349,1.64369939,171.37,171.23,28.61341225]
[1641303904549,1.90369939,171.37,171.23,28.61341225]
[1641303904752,2.40369939,171.37,171.23,28.61341225]
[1641303905351,2.91919939,171.36,171.23,28.61341225]
[1641303905551,3.17919939,171.36,171.23,28.61341225]
[1641303905750,3.67919939,171.36,171.23,28.61341225]
[1641303908652,3.67919939,171.36,171.21,24.2214]
[1641303908850,1.64369939,171.35,171.21,0.26]
[1641303909053,2.40101586,171.34,171.21,0.26]
[1641303909552,3.16101586,171.34,171.2,74.7443]
[1641303909757,1.2453,171.33,171.18,23.84839947]
[1641303909955,1.5053,171.33,171.19,0.5]
[1641303910159,2.0053,171.33,171.19,0.5]
[1641303910656,2.0053,171.33,171.19,24.7432]
[1641303911057,1.7453,171.33,171.19,24.7432]
[1641303911259,25.0988,171.33,171.19,26.074]
[1641303912063,25.0988,171.33,171.2,1.42669368]
[1641303912464,25.0988,171.33,171.2,0.26]
[1641303913065,25.0988,171.33,171.19,26.834]
[1641303913465,25.3588,171.33,171.19,26.834]
[1641303915672,25.3588,171.33,171.19,28.26069368]
[1641303915874,24.1135,171.33,171.19,28.26069368]
[1641303916072,23.6135,171.33,171.19,28.26069368]
[1641303916274,0.5,171.33,171.19,28.26069368]
[1641303916472,2.90101586,171.34,171.19,28.26069368]
[1641303918075,3.16101586,171.34,171.19,28.26069368]
[1641303922004,2.90101586,171.34,171.19,28.26069368]
[1641303922407,2.40101586,171.34,171.19,28.26069368]
[1641303922609,1.64369939,171.37,171.19,28.26069368]
[1641303922805,1.64369939,171.37,171.2,76.9586]
[1641303923008,2.14369939,171.37,171.32,0.05206205]
[1641303923615,4.57392091,171.37,171.32,0.05206205]
[1641303924311,0.76,171.37,171.32,0.05206205]
[1641303924511,0.5,171.37,171.32,0.05206205]
[1641303924712,125.39559939,171.39,171.32,0.05206205]
[1641303925112,123.7519,171.39,171.32,0.05206205]
[1641303925516,126.2619378,171.39,171.32,0.05206205]
[1641303926012,126.5219378,171.39,171.32,0.05206205]
[1641303926411,126.2619378,171.39,171.32,0.05206205]
[1641303926912,123.7519,171.39,171.32,0.05206205]
[1641303927111,74.6538,171.39,171.32,22.58075027]
[1641303927312,1.64369939,171.41,171.32,22.58075027]
[1641303927512,1.64369939,171.41,171.32,23.34075027]
[1641303927712,2.14369939,171.41,171.32,23.34075027]
[1641303928116,1.64369939,171.41,171.32,23.34075027]
[1641303928611,2.67578731,171.43,171.32,23.34075027]
[1641303929012,2.93578731,171.43,171.32,22.84075027]
[1641303929211,2.93578731,171.43,171.32,22.58075027]
[1641303929510,4.5794867,171.43,171.32,22.58075027]
[1641303929712,5.0794867,171.43,171.32,22.58075027]
[1641303930411,1.64369939,171.41,171.32,22.58075027]
[1641303931014,4.3194867,171.43,171.32,23.34075027]
[1641303931414,4.8194867,171.43,171.32,23.34075027]
[1641303932215,4.8194867,171.43,171.39,0.05206205]
[1641303932616,4.8194867,171.43,171.39,2.68070885]
[1641303932815,5.0794867,171.43,171.39,2.68070885]
[1641303933015,5.0794867,171.43,171.39,25.83062364]
[1641303933415,2.40369939,171.43,171.39,25.83062364]
[1641303933816,2.14369939,171.43,171.39,25.83062364]
[1641303934417,0.5,171.43,171.39,25.83062364]
[1641303934818,2.14369939,171.44,171.39,25.83062364]
[1641303935019,0.5,171.44,171.39,25.83062364]
[1641303935221,0.5,171.44,171.39,2.68070885]
[1641303935420,104.39624737,171.45,171.39,2.68070885]
[1641303936721,1.64369939,171.44,171.39,2.68070885]
[1641303936920,2.14369939,171.44,171.39,2.68070885]
[1641303937122,1.64369939,171.43,171.39,2.68070885]
[1641303937521,2.40369939,171.43,171.39,2.68070885]
[1641303938120,0.76,171.43,171.39,2.68070885]
[1641303938520,102.75254798,171.45,171.39,2.68070885]
[1641303938721,102.49254798,171.45,171.39,2.68070885]
[1641303940122,102.75254798,171.45,171.39,2.68070885]
[1641303940722,1.64369939,171.43,171.39,2.68070885]
[1641303940927,2.14369939,171.43,171.39,2.68070885]
[1641303941124,2.40369939,171.43,171.39,2.68070885]
[1641303941325,2.14369939,171.43,171.39,2.68070885]
[1641303941524,2.40369939,171.43,171.39,2.68070885]
[1641303942125,0.76,171.43,171.39,2.68070885]
[1641303942525,2.40369939,171.44,171.39,2.68070885]
[1641303942926,1.64369939,171.43,171.39,2.68070885]
[1641303943326,2.40369939,171.43,171.39,2.68070885]
[1641303944329,2.14369939,171.43,171.39,2.68070885]
[1641303944529,2.40369939,171.43,171.39,2.68070885]
[1641303944730,2.14369939,171.43,171.39,2.68070885]
[1641303945330,0.5,171.43,171.39,2.68070885]
[1641303945730,104.39624737,171.45,171.39,2.68070885]
[1641303947557,104.13624737,171.45,171.39,2.68070885]
[1641303948958,104.39624737,171.45,171.39,2.68070885]
[1641303954465,1.64369939,171.44,171.39,2.68070885]
[1641303954865,2.40369939,171.44,171.39,2.68070885]
[1641303955668,1.90369939,171.44,171.39,2.68070885]
[1641303956376,0.26,171.44,171.39,2.68070885]
[1641303956569,103.89624737,171.45,171.39,2.68070885]
[1641303956770,103.63624737,171.45,171.39,2.68070885]
[1641303958073,103.89624737,171.45,171.39,2.68070885]
[1641303959373,104.39624737,171.45,171.39,3.18070885]
[1641303959573,104.39624737,171.45,171.39,2.68070885]
[1641303959976,102.75254798,171.45,171.39,2.68070885]
[1641303960376,102.25254798,171.45,171.39,2.68070885]
[1641303960574,102.75254798,171.45,171.39,2.68070885]
[1641303960774,102.25254798,171.45,171.39,2.68070885]
[1641303960975,103.89624737,171.45,171.39,2.68070885]
[1641303961476,102.25254798,171.45,171.39,2.68070885]
[1641303961674,102.75254798,171.45,171.39,2.68070885]
[1641303961875,102.25254798,171.45,171.39,2.68070885]
[1641303962075,102.75254798,171.45,171.39,2.68070885]
[1641303963175,102.25254798,171.45,171.39,2.68070885]
[1641303964976,2.53214798,171.45,171.39,2.68070885]
[1641303965176,1.64369939,171.46,171.39,2.94070885]
[1641303965477,1.64369939,171.46,171.39,3.44070885]
[1641303966077,1.64369939,171.48,171.39,3.44070885]
[1641303966278,2.79031742,171.46,171.39,3.44070885]
[1641303966880,1.64369939,171.48,171.39,3.44070885]
[1641303967081,1.66369939,171.49,171.39,3.44070885]
[1641303967480,1.64369939,171.48,171.39,3.44070885]
[1641303967880,4.17738509,171.48,171.39,3.44070885]
[1641303968080,1.64369939,171.48,171.39,3.44070885]
[1641303968480,1.64369939,171.49,171.39,3.44070885]
[1641303969081,1.64369939,171.5,171.39,3.44070885]
[1641303969384,2.26850185,171.48,171.4,1.2497]
[1641303969580,2.26850185,171.48,171.4,1.5097]
[1641303969782,2.26850185,171.48,171.4,2.0097]
[1641303971083,2.52850185,171.48,171.4,1.5097]
[1641303971283,2.52850185,171.48,171.4,0.76]
[1641303971483,2.52850185,171.48,171.39,3.44070885]
[1641303971684,2.26850185,171.48,171.39,3.44070885]
[1641303971886,1.64369939,171.47,171.39,3.44070885]
[1641303972091,1.64369939,171.47,171.46,2.6286468]
[1641303972286,7.70525614,171.47,171.46,2.68070885]
[1641303972887,6.06155675,171.47,171.46,2.68070885]
[1641303973409,4.6750271,171.47,171.46,2.68070885]
[1641303973611,7.70525614,171.47,171.46,2.68070885]
[1641303973810,1.64369939,171.47,171.46,2.68070885]
[1641303974011,3.91220124,171.48,171.46,2.68070885]
[1641303974213,4.17220124,171.48,171.46,2.68070885]
[1641303974413,4.19220124,171.48,171.46,2.68070885]
[1641303974815,3.93220124,171.48,171.46,2.68070885]
[1641303975213,1.66369939,171.48,171.46,2.68070885]
[1641303975413,0.02,171.48,171.46,2.68070885]
[1641303983021,6.08155675,171.48,171.46,2.68070885]
[1641303984122,0.02,171.48,171.46,2.68070885]
[1641303990529,0.02,171.48,171.46,2.94070885]
[1641303991332,6.06155675,171.47,171.46,2.68070885]
[1641303991529,2.65670309,171.47,171.46,2.68070885]
[1641303991937,79.5,171.47,171.28,10.2684]
[1641303992132,79.76,171.47,171.32,26.66649368]
[1641303992432,0.76,171.47,171.33,26.79316654]
[1641303992629,2.103,171.47,171.34,24.3428]
[1641303992832,1.843,171.47,171.34,24.3428]
[1641303993033,4.59290987,171.46,171.34,24.3428]
[1641303993332,5.09290987,171.46,171.35,1.3527]
[1641303993833,1.64369939,171.45,171.35,1.8527]
[1641303994031,1.64369939,171.45,171.35,3.53939368]
[1641303994232,2.94921048,171.46,171.35,3.53939368]
[1641303994636,2.94921048,171.46,171.36,24.4561]
[1641303994833,2.94921048,171.46,171.36,24.9561]
[1641303995037,1.64369939,171.47,171.36,25.2161]
[1641303995235,1.64369939,171.47,171.36,26.64279368]
[1641303995435,1.90369939,171.47,171.36,26.64279368]
[1641303995735,1.64369939,171.47,171.36,26.64279368]
[1641303995934,1.64369939,171.47,171.37,1.2487]
[1641303996134,2.26899184,171.48,171.37,1.2487]
[1641303996335,2.26899184,171.48,171.38,1.42669368]
[1641303996535,2.26899184,171.48,171.38,1.68669368]
[1641303996735,2.26899184,171.48,171.38,2.18669368]
[1641303996936,2.26899184,171.48,171.39,1.42669368]
[1641303997137,2.26899184,171.48,171.4,31.33122633]
[1641303997336,2.26899184,171.48,171.4,33.18802633]
[1641303997539,2.26899184,171.48,171.4,33.44802633]
[1641304000363,2.26899184,171.48,171.4,33.18802633]
[1641304002768,2.26899184,171.48,171.4,33.44802633]
[1641304003970,76.2341,171.51,171.41,1.42669368]
[1641304004170,76.2341,171.51,171.41,25.80939368]
[1641304004470,76.2341,171.51,171.41,26.56939368]
[1641304004872,2.270671,171.5,171.41,26.56939368]
[1641304005277,2.270671,171.5,171.41,27.82389368]
[1641304006374,1.64369939,171.51,171.41,27.82389368]
[1641304006573,1.64369939,171.51,171.42,1.42669368]
[1641304007076,1.64369939,171.51,171.42,2.18669368]
[1641304007276,1.64369939,171.52,171.42,2.18669368]
[1641304007473,1.64369939,171.52,171.43,1.42669368]
[1641304007877,1.64369939,171.52,171.43,2.18669368]
[1641304008074,1.64369939,171.54,171.43,3.45159368]
[1641304008475,4.02620299,171.54,171.43,3.45159368]
[1641304008677,4.02620299,171.54,171.44,1.42669368]
[1641304008875,4.02620299,171.54,171.44,1.92669368]
[1641304009075,4.02620299,171.54,171.44,2.18669368]
[1641304009275,2.3825036,171.54,171.44,2.18669368]
[1641304010280,2.3825036,171.54,171.45,1.42669368]
[1641304010480,2.3825036,171.54,171.45,1.68669368]
[1641304010776,2.3825036,171.54,171.45,3.52879368]
[1641304012579,2.3825036,171.54,171.49,1.7555497]
[1641304012981,2.3825036,171.54,171.49,2.0155497]
[1641304013181,2.3825036,171.54,171.49,1.7555497]
[1641304013182,2.6425036,171.54,171.49,1.7555497]
[1641304014181,4.78620299,171.54,171.49,1.7555497]
[1641304014783,1.64369939,171.53,171.49,1.7555497]
[1641304014984,2.40369939,171.53,171.49,1.7555497]
[1641304016182,2.40369939,171.53,171.49,1.7755497]
[1641304017486,1.90369939,171.53,171.49,1.7755497]
[1641304018610,0.26,171.53,171.49,1.7755497]
[1641304019010,4.78620299,171.54,171.49,1.7755497]
[1641304019410,1.64369939,171.53,171.49,1.7755497]
[1641304019613,1.90369939,171.53,171.49,1.7755497]
[1641304019813,2.40369939,171.53,171.49,1.7755497]
[1641304022015,0.76,171.53,171.49,1.7755497]
[1641304022418,4.78620299,171.54,171.49,1.7755497]
[1641304028327,3.1425036,171.54,171.49,1.7755497]
[1641304030431,0.5,171.54,171.49,2.0355497]
[1641304030731,0.5,171.54,171.49,1.7755497]
[1641304030932,23.05087834,171.55,171.49,1.7755497]
[1641304031334,2.25862395,171.54,171.49,1.7755497]
[1641304031832,3.01862395,171.54,171.49,1.7755497]
[1641304033734,2.75862395,171.54,171.49,1.7755497]
[1641304034637,11.48862395,171.54,171.49,1.7755497]
[1641304034936,3.07039307,171.53,171.41,1.2661]
[1641304035137,8.47,171.52,171.41,1.2661]
[1641304035336,24.382,171.51,171.33,96.5281]
[1641304035538,8.47,171.5,171.38,22.90812634]
[1641304035737,2.37097646,171.48,171.38,22.90812634]
[1641304035937,2.87097646,171.48,171.38,22.90812634]
[1641304036237,3.13097646,171.48,171.38,22.90812634]
[1641304036640,1.303,171.47,171.38,22.90812634]
[1641304036840,1.803,171.47,171.38,22.90812634]
[1641304037066,2.063,171.47,171.38,22.90812634]
[1641304038868,2.063,171.47,171.38,23.16812634]
[1641304039869,1.563,171.47,171.38,23.16812634]
[1641304040269,1.303,171.47,171.38,23.16812634]
[1641304041371,2.37097646,171.48,171.38,23.16812634]
[1641304041673,2.37097646,171.48,171.38,23.66812634]
[1641304041871,4.23287646,171.48,171.39,24.1856]
[1641304042070,4.23287646,171.48,171.39,24.4456]
[1641304042470,4.49287646,171.48,171.39,25.7524]
[1641304042671,2.37097646,171.48,171.39,25.7524]
[1641304043970,2.63097646,171.48,171.38,22.90812634]
[1641304044175,3.13097646,171.48,171.38,23.16812634]
[1641304044373,3.13097646,171.48,171.39,25.229]
[1641304044581,3.13097646,171.48,171.39,25.489]
[1641304047883,3.13097646,171.48,171.39,25.229]
[1641304048483,4.40027646,171.48,171.38,22.90812634]
[1641304048683,4.40027646,171.48,171.38,23.16812634]
[1641304049084,22.8859,171.47,171.38,23.16812634]
[1641304049485,23.6459,171.47,171.38,23.16812634]
[1641304051187,23.6459,171.47,171.38,22.90812634]
[1641304052587,23.6459,171.47,171.38,23.16812634]
[1641304057494,23.6459,171.47,171.38,22.90812634]
[1641304059101,23.6459,171.47,171.38,23.16812634]
[1641304059700,23.3859,171.47,171.38,23.16812634]
[1641304059899,22.8859,171.47,171.38,23.66812634]
[1641304062702,22.8859,171.47,171.38,24.97422634]
[1641304067106,3.64027646,171.48,171.38,24.97422634]
[1641304067305,3.90027646,171.48,171.38,24.97422634]
[1641304067505,3.90027646,171.48,171.39,24.3672]
[1641304067907,3.90027646,171.48,171.39,24.8672]
[1641304068107,3.90027646,171.48,171.39,25.1272]
[1641304069206,3.90027646,171.48,171.39,24.8672]
[1641304069809,1.5293,171.48,171.39,24.8672]
[1641304070011,0.26,171.48,171.39,24.8672]
[1641304070209,1.64369939,171.52,171.39,24.8672]
[1641304070411,2.14369939,171.52,171.4,1.2311]
[1641304070609,1.64369939,171.52,171.4,1.4911]
[1641304070836,2.52929399,171.51,171.4,1.9911]
[1641304073812,2.52929399,171.51,171.4,10.4611]
[1641304074215,2.52929399,171.51,171.41,23.2742]
[1641304074415,2.52929399,171.51,171.41,23.7742]
[1641304074614,2.52929399,171.51,171.41,24.0342]
[1641304074816,24.19457773,171.55,171.42,8.47]
[1641304075017,22.55087834,171.55,171.43,23.8074]
[1641304075218,22.55087834,171.55,171.45,30.92235342]
[1641304075514,22.55087834,171.55,171.46,25.1427]
[1641304075917,22.55087834,171.55,171.46,25.9027]
[1641304076517,22.81087834,171.55,171.46,25.6427]
[1641304078116,22.81087834,171.55,171.46,25.9027]
[1641304079546,22.81087834,171.55,171.46,25.6427]
[1641304079750,23.31087834,171.55,171.46,25.1427]
[1641304080449,22.81087834,171.55,171.46,1.2339]
[1641304080750,22.81087834,171.55,171.46,1.7339]
[1641304081049,22.81087834,171.55,171.46,25.804]
[1641304081250,23.31087834,171.55,171.46,25.804]
[1641304081951,24.66977834,171.55,171.46,25.804]
[1641304082351,24.66977834,171.55,171.46,25.544]
[1641304082953,24.66977834,171.55,171.46,25.044]
[1641304083455,24.66977834,171.55,171.46,25.544]
[1641304083653,24.16977834,171.55,171.46,25.804]
[1641304084854,24.66977834,171.55,171.46,25.804]
[1641304091964,24.16977834,171.55,171.46,25.804]
[1641304094068,23.90977834,171.55,171.46,25.804]
[1641304094269,22.55087834,171.55,171.46,25.804]
[1641304094869,22.55087834,171.55,171.47,8.47]
[1641304095071,22.55087834,171.55,171.47,8.73]
[1641304095274,22.55087834,171.55,171.47,16.158]
[1641304096571,22.55087834,171.55,171.47,9.23]
[1641304102597,22.55087834,171.55,171.47,19.70253991]
[1641304103099,22.55087834,171.55,171.47,25.69699121]
[1641304103699,22.55087834,171.55,171.47,32.69529121]
[1641304104614,22.55087834,171.55,171.47,31.26859753]
[1641304116118,22.55087834,171.55,171.47,31.00859753]
[1641304116323,22.55087834,171.55,171.47,25.01414623]
[1641304117320,22.55087834,171.55,171.47,24.51414623]
[1641304117920,22.55087834,171.55,171.47,24.77414623]
[1641304118925,22.55087834,171.55,171.47,25.27414623]
[1641304120625,22.55087834,171.55,171.47,25.01414623]
[1641304122026,22.55087834,171.55,171.47,25.27414623]
[1641304125254,22.55087834,171.55,171.47,25.01414623]
[1641304126952,22.55087834,171.55,171.47,15.4683]
[1641304127857,0.02,171.6,171.56,18.387866]
[1641304128456,0.02,171.6,171.56,18.887866]
[1641304128856,0.02,171.6,171.56,18.647866]
[1641304129455,0.02,171.6,171.56,19.147866]
[1641304129855,0.02,171.6,171.56,18.647866]
[1641304130256,25.7227,171.64,171.56,18.387866]
[1641304130455,25.7227,171.64,171.56,19.147866]
[1641304130858,0.02,171.63,171.56,19.147866]
[1641304132061,0.02,171.63,171.56,18.647866]
[1641304132261,26.2227,171.64,171.56,18.647866]
[1641304132462,26.4827,171.64,171.56,18.647866]
[1641304132663,25.9827,171.64,171.56,18.647866]
[1641304133261,26.4827,171.64,171.56,18.647866]
[1641304133662,25.9827,171.64,171.56,18.647866]
[1641304134061,25.7227,171.64,171.56,18.647866]
[1641304135767,25.9827,171.64,171.56,18.647866]
[1641304135965,25.7227,171.64,171.56,18.647866]
[1641304137868,26.4827,171.64,171.56,18.387866]
[1641304138469,25.9827,171.64,171.56,18.387866]
[1641304138668,26.4827,171.64,171.56,18.387866]
[1641304138869,26.2227,171.64,171.56,18.387866]
[1641304139071,25.7227,171.64,171.56,18.387866]
[1641304139269,25.7227,171.64,171.56,18.647866]
[1641304139772,25.7227,171.64,171.56,19.147866]
[1641304142871,25.7227,171.64,171.56,20.57455968]
[1641304143570,25.7227,171.64,171.56,21.82985968]
[1641304143772,25.7227,171.64,171.56,20.57455968]
[1641304144271,25.7227,171.64,171.56,19.147866]
[1641304144470,25.7227,171.64,171.56,18.647866]
[1641304144671,25.7227,171.64,171.56,19.147866]
[1641304145475,25.7227,171.64,171.56,20.57455968]
[1641304146673,25.7227,171.64,171.56,21.86935968]
[1641304153183,25.7227,171.64,171.56,21.36935968]
[1641304154383,25.7227,171.64,171.56,21.60935968]
[1641304155782,25.7227,171.64,171.56,21.86935968]
[1641304156189,25.7227,171.64,171.56,20.57455968]
[1641304156386,25.7227,171.64,171.56,20.31455968]
[1641304157486,25.7227,171.64,171.56,20.57455968]
[1641304162193,24.7227,171.64,171.56,20.57455968]
[1641304166222,24.7227,171.64,171.56,18.387866]
[1641304166422,30.8557,171.64,171.56,18.387866]
[1641304166622,79.0,171.62,171.47,6.9983]
[1641304166823,2.80291039,171.6,171.47,6.9983]
[1641304167123,3.06291039,171.6,171.47,6.9983]
[1641304167324,8.93391039,171.6,171.43,8.47]
[1641304167621,8.47,171.59,171.38,93.7]
[1641304167823,114.81,171.59,171.38,93.7]
[1641304168023,115.07,171.59,171.38,93.7]
[1641304168223,115.07,171.59,171.39,31.55126474]
[1641304168425,2.80769808,171.57,171.39,32.05126474]
[1641304168623,8.47,171.56,171.39,32.05126474]
[1641304168822,8.97,171.56,171.39,32.05126474]
[1641304169022,9.23,171.56,171.39,32.05126474]
[1641304169423,2.85479705,171.54,171.39,32.05126474]
[1641304169622,8.47,171.53,171.39,32.31126474]
[1641304170023,9.23,171.53,171.39,32.05126474]
[1641304171622,9.23,171.53,171.39,32.31126474]
[1641304173724,10.87369939,171.53,171.39,32.31126474]
[1641304173928,10.61369939,171.53,171.39,32.31126474]
[1641304174425,8.97,171.53,171.39,32.31126474]
[1641304175226,10.2919,171.53,171.39,32.31126474]
[1641304175427,10.5519,171.53,171.39,32.31126474]
[1641304176428,1.64369939,171.52,171.39,32.31126474]
[1641304176628,2.30883495,171.51,171.39,32.31126474]
[1641304177029,2.56883495,171.51,171.39,32.31126474]
[1641304177628,0.26,171.51,171.39,32.31126474]
[1641304178028,11.93559939,171.53,171.39,32.31126474]
[1641304178228,10.2919,171.53,171.39,32.31126474]
[1641304178828,2.80090704,171.52,171.39,32.31126474]
[1641304179230,3.30090704,171.52,171.39,32.31126474]
[1641304179434,3.56090704,171.52,171.39,32.31126474]
[1641304179834,3.30090704,171.52,171.39,32.31126474]
[1641304180436,24.5056,171.54,171.39,40.78126474]
[1641304180737,24.5056,171.54,171.39,49.20952842]
[1641304181139,72.3409,171.55,171.39,49.20952842]
[1641304181337,1.64369939,171.56,171.4,1.2874]
[1641304181538,2.15743212,171.55,171.41,15.47075]
[1641304181938,2.15743212,171.55,171.41,16.23075]
[1641304182339,2.15743212,171.55,171.41,18.92274368]
[1641304184345,2.15743212,171.55,171.41,17.49605]
[1641304185547,2.15743212,171.55,171.41,17.23605]
[1641304186351,2.41743212,171.55,171.41,17.23605]
[1641304186749,2.15743212,171.55,171.41,17.23605]
[1641304186951,2.15743212,171.55,171.41,17.49605]
[1641304187954,2.15743212,171.55,171.41,17.23605]
[1641304188557,2.41743212,171.55,171.41,17.23605]
[1641304188756,2.65743212,171.55,171.41,17.23605]
[1641304189058,2.91743212,171.55,171.41,17.23605]
[1641304189855,26.64023212,171.55,171.41,17.23605]
[1641304190456,27.88443212,171.55,171.41,17.23605]
[1641304191678,27.88443212,171.55,171.41,17.49605]
[1641304191876,36.35443212,171.55,171.41,16.23075]
[1641304192077,36.09443212,171.55,171.41,15.97075]
[1641304192478,37.73813151,171.55,171.41,15.97075]
[1641304193277,2.24725576,171.52,171.41,15.97075]
[1641304193479,3.00725576,171.52,171.41,16.23075]
[1641304193878,2.74725576,171.52,171.41,7.76075]
[1641304194078,3.00725576,171.52,171.41,7.76075]
[1641304195681,1.3064,171.53,171.41,7.76075]
[1641304195883,1.8064,171.53,171.41,7.76075]
[1641304196081,0.5,171.53,171.42,9.89669368]
[1641304196285,1.64369939,171.54,171.42,10.39669368]
[1641304196582,1.64369939,171.54,171.42,10.65669368]
[1641304196783,2.93536075,171.53,171.42,10.65669368]